bitfinex/quotes_BTCUSD_20240811
["timestamp","ask_amount","ask_price","bid_price","bid_amount"]
[1723377628142,7.2e-07,60725.0,60724.0,1.79743644]
[1723377628297,0.25750539,60737.0,60736.0,1.207072]
[1723377628529,0.25750539,60750.0,60749.0,0.345684]
[1723377628753,0.0914,60756.0,60755.0,0.576082]
[1723377629565,0.0914,60756.0,60755.0,0.806515]
[1723377631013,0.0934,60756.0,60755.0,0.806515]
[1723377631413,0.0934,60756.0,60755.0,0.345649]
[1723377631414,0.0914,60756.0,60755.0,0.345649]
[1723377631616,0.0914,60756.0,60737.0,0.1698]
[1723377631789,0.0934,60756.0,60755.0,0.115216]
[1723377631997,0.0934,60756.0,60755.0,0.345649]
[1723377632261,0.0934,60756.0,60755.0,0.576082]
[1723377632910,0.16174242,60756.0,60755.0,0.576082]
[1723377633026,0.15974242,60756.0,60755.0,0.576082]
[1723377633566,0.0914,60756.0,60755.0,0.806515]
[1723377633931,0.0934,60756.0,60755.0,0.806515]
[1723377634137,0.002,60756.0,60755.0,0.806515]
[1723377634363,0.0719,60760.0,60759.0,0.345627]
[1723377634642,0.14024047,60760.0,60759.0,0.345627]
[1723377635838,0.34890539,60767.0,60766.0,0.115195]
[1723377636017,0.0914,60767.0,60766.0,0.575977]
[1723377637040,0.0914,60767.0,60766.0,0.806368]
[1723377637239,0.0719,60771.0,60769.0,0.34557]
[1723377637442,0.06916075,60770.0,60769.0,0.57595]
[1723377638192,0.06916075,60770.0,60769.0,0.34557]
[1723377638602,0.06916075,60770.0,60769.0,0.57595]
[1723377638816,0.06916075,60770.0,60769.0,0.57695]
[1723377638979,0.06916075,60770.0,60769.0,0.97114492]
[1723377639158,0.000831,60770.0,60769.0,0.97114492]
[1723377639746,0.000831,60770.0,60769.0,0.97214492]
[1723377639747,0.008831,60770.0,60769.0,0.97214492]
[1723377640568,0.000831,60770.0,60769.0,0.97014492]
[1723377640769,0.000831,60770.0,60769.0,0.001]
[1723377640975,0.072731,60770.0,60769.0,0.11619]
[1723377641131,0.072731,60770.0,60769.0,0.34657]
[1723377642182,0.164131,60770.0,60769.0,0.34557]
[1723377642309,0.164131,60770.0,60769.0,0.57895]
[1723377642795,0.164131,60770.0,60769.0,0.35057]
[1723377643195,0.164131,60770.0,60769.0,0.34857]
[1723377643513,0.164131,60770.0,60769.0,0.34557]
[1723377643713,0.000831,60770.0,60769.0,0.50938492]
[1723377643919,0.004831,60770.0,60769.0,0.81536492]
[1723377644117,0.004831,60770.0,60769.0,1.04574492]
[1723377645246,0.004831,60770.0,60769.0,1.04874492]
[1723377645643,0.000831,60770.0,60769.0,1.04874492]
[1723377645891,0.000831,60770.0,60769.0,1.37632492]
[1723377646128,0.004831,60770.0,60769.0,1.47632492]
[1723377646347,0.004831,60770.0,60769.0,1.24594492]
[1723377646557,0.000831,60770.0,60769.0,1.14574492]
[1723377646753,0.000831,60770.0,60769.0,1.07014492]
[1723377646960,0.002831,60770.0,60769.0,0.97014492]
[1723377647388,0.000831,60770.0,60769.0,0.98114492]
[1723377647795,0.000831,60770.0,60769.0,0.57995]
[1723377647994,0.000831,60770.0,60769.0,0.58395]
[1723377648372,0.000831,60770.0,60769.0,0.57995]
[1723377648810,0.000831,60770.0,60769.0,0.57595]
[1723377649237,0.001831,60770.0,60769.0,0.58395]
[1723377649792,0.000831,60770.0,60769.0,0.57595]
[1723377650108,0.004831,60770.0,60769.0,0.57595]
[1723377650572,0.000831,60770.0,60769.0,0.58695]
[1723377650766,0.000831,60770.0,60769.0,0.57595]
[1723377651310,0.002831,60770.0,60769.0,0.57595]
[1723377653684,0.002831,60770.0,60769.0,0.34557]
[1723377653818,0.000831,60770.0,60769.0,0.34557]
[1723377654242,0.096131,60770.0,60769.0,0.34557]
[1723377654645,0.098131,60770.0,60769.0,0.34557]
[1723377656371,0.096131,60770.0,60769.0,0.34557]
[1723377656923,0.098131,60770.0,60769.0,0.34557]
[1723377657127,0.16645611,60770.0,60769.0,0.34557]
[1723377657265,0.16445611,60770.0,60769.0,0.57595]
[1723377657845,0.16645611,60770.0,60769.0,0.57595]
[1723377658048,0.07115611,60770.0,60769.0,0.57595]
[1723377658371,0.06915611,60770.0,60769.0,0.57595]
[1723377659226,0.23996833,60770.0,60769.0,0.57595]
[1723377659636,0.24496833,60770.0,60769.0,0.57595]
[1723377660150,0.23996833,60770.0,60769.0,0.57595]
[1723377660546,0.24496833,60770.0,60769.0,0.57595]
[1723377660904,0.24496852,60770.0,60769.0,0.57595]
[1723377661667,0.005831,60770.0,60769.0,0.57595]
[1723377661867,0.24496876,60770.0,60769.0,0.57595]
[1723377662502,0.24496876,60770.0,60769.0,1.14454492]
[1723377662701,0.24496876,60770.0,60769.0,0.57595]
[1723377662914,0.24496876,60770.0,60769.0,0.34557]
[1723377663333,0.2246391,60770.0,60769.0,0.11519]
[1723377663536,0.0965,60772.0,60771.0,0.115186]
[1723377663736,0.46933543,60772.0,60771.0,0.115186]
[1723377663911,0.3326846,60772.0,60771.0,0.115186]
[1723377664108,0.46933434,60772.0,60771.0,0.115186]
[1723377664309,0.3326846,60772.0,60771.0,0.115186]
[1723377664760,0.3396846,60772.0,60771.0,0.116186]
[1723377664964,0.47634008,60772.0,60771.0,0.116186]
[1723377665527,0.47370614,60772.0,60771.0,0.116186]
[1723377666130,0.47370614,60772.0,60771.0,0.346559]
[1723377666732,0.37720614,60772.0,60771.0,0.807305]
[1723377666932,0.07532219,60772.0,60771.0,1.06461992]
[1723377667294,0.23998247,60772.0,60771.0,1.06461992]
[1723377668124,0.07532219,60772.0,60771.0,1.06461992]
[1723377668543,0.07531755,60772.0,60771.0,1.06461992]
[1723377668798,0.07614955,60772.0,60771.0,1.06461992]
[1723377668999,0.0761487,60772.0,60771.0,1.06461992]
[1723377670065,0.232534,60772.0,60771.0,0.806305]
[1723377670269,0.232534,60772.0,60771.0,0.809305]
[1723377670680,0.23204381,60772.0,60771.0,0.809305]
[1723377670887,0.23208789,60772.0,60771.0,0.578932]
[1723377671091,0.23208789,60772.0,60771.0,0.583932]
[1723377671305,0.23208789,60772.0,60771.0,0.348559]
[1723377671717,0.23208789,60772.0,60771.0,0.121186]
[1723377671915,0.33078789,60772.0,60771.0,0.118186]
[1723377672125,0.33078789,60772.0,60771.0,0.348559]
[1723377672334,0.23208789,60772.0,60771.0,0.575932]
[1723377672744,0.23208789,60772.0,60771.0,0.576932]
[1723377673610,0.23308789,60772.0,60771.0,0.575932]
[1723377673865,0.23208789,60772.0,60771.0,0.575932]
[1723377674081,0.000832,60772.0,60771.0,0.575932]
[1723377674295,0.07015461,60772.0,60771.0,0.575932]
[1723377674501,0.22875356,60772.0,60771.0,0.575932]
[1723377674706,0.22875356,60772.0,60771.0,0.58582626]
[1723377675183,0.36539878,60772.0,60771.0,0.58582626]
[1723377675541,0.36439878,60772.0,60771.0,0.58582626]
[1723377675746,0.36639878,60772.0,60771.0,0.575932]
[1723377675944,0.36639878,60772.0,60771.0,0.345559]
[1723377676167,0.46509878,60772.0,60771.0,0.575932]
[1723377676347,0.46309878,60772.0,60771.0,0.575932]
[1723377676731,0.36639878,60772.0,60771.0,0.575932]
[1723377677152,0.36439878,60772.0,60771.0,0.575932]
[1723377677578,0.16446132,60772.0,60771.0,0.97011992]
[1723377677764,0.23278423,60772.0,60771.0,1.04691992]
[1723377678104,0.002832,60772.0,60771.0,1.04691992]
[1723377678304,0.07115266,60772.0,60771.0,1.04691992]
[1723377678748,0.06915266,60772.0,60771.0,1.04691992]
[1723377679061,0.23424074,60772.0,60771.0,1.04691992]
[1723377679267,0.2366013,60772.0,60771.0,1.04691992]
[1723377679684,0.2319263,60772.0,60771.0,1.04691992]
[1723377679888,0.23192244,60772.0,60771.0,1.04691992]
[1723377680110,0.06915266,60772.0,60771.0,1.04691992]
[1723377680310,0.06914902,60772.0,60771.0,1.04691992]
[1723377680687,0.06914902,60772.0,60771.0,1.05091992]
[1723377681088,0.000832,60772.0,60771.0,1.05091992]
[1723377681309,0.2292435,60772.0,60771.0,1.04691992]
[1723377682329,0.2292435,60772.0,60771.0,1.04891992]
[1723377683388,0.2292435,60772.0,60771.0,1.05291992]
[1723377683562,0.2292435,60772.0,60771.0,1.04891992]
[1723377683943,0.2292435,60772.0,60771.0,1.05291992]
[1723377684769,0.000832,60772.0,60771.0,1.05291992]
[1723377684978,0.06915007,60772.0,60771.0,1.05291992]
[1723377685764,0.2315886,60772.0,60771.0,1.05291992]
[1723377688334,0.06915007,60772.0,60771.0,1.05291992]
[1723377688541,0.23298786,60772.0,60771.0,1.05291992]
[1723377688976,0.23227795,60772.0,60771.0,1.05291992]
[1723377690358,0.06915006,60772.0,60771.0,1.05291992]
[1723377690739,0.06915006,60772.0,60771.0,1.28329292]
[1723377690901,0.000832,60772.0,60771.0,1.14991992]
[1723377691102,0.000832,60772.0,60771.0,1.54348899]
[1723377691278,0.000832,60772.0,60771.0,1.53948899]
[1723377691485,0.000832,60772.0,60771.0,1.53748899]
[1723377691688,0.000832,60772.0,60771.0,1.54148899]
[1723377691895,0.000832,60772.0,60771.0,1.54348899]
[1723377692374,0.000832,60772.0,60771.0,1.54148899]
[1723377692821,0.000832,60772.0,60771.0,1.55348899]
[1723377693023,0.000832,60772.0,60771.0,1.54948899]
[1723377693237,0.000832,60772.0,60771.0,1.78986199]
[1723377693424,0.00831,60773.0,60772.0,0.977991]
[1723377693626,0.00831,60773.0,60772.0,1.6077148]
[1723377693830,0.00831,60773.0,60772.0,1.86475571]
[1723377694032,0.00831,60773.0,60772.0,2.09312471]
[1723377694232,0.00831,60773.0,60772.0,2.06840088]
[1723377694441,0.00831,60773.0,60772.0,2.01910899]
[1723377694642,0.00831,60773.0,60772.0,1.78873999]
[1723377694998,0.00831,60773.0,60772.0,1.53537099]
[1723377695185,0.00831,60773.0,60772.0,1.30500199]
[1723377695382,0.00831,60773.0,60772.0,0.81443692]
[1723377695641,0.00831,60773.0,60772.0,1.05880592]
[1723377696222,0.00831,60773.0,60772.0,1.04480592]
[1723377696433,0.00831,60773.0,60772.0,1.05880592]
[1723377696628,0.00831,60773.0,60772.0,1.15880592]
[1723377696848,0.00831,60773.0,60772.0,0.92843692]
[1723377697146,0.00831,60773.0,60772.0,0.94243692]
[1723377697523,0.00831,60773.0,60772.0,1.17280592]
[1723377697720,0.00831,60773.0,60772.0,0.92843692]
[1723377698121,0.00831,60773.0,60772.0,1.26880592]
[1723377699360,0.00831,60773.0,60772.0,1.03843692]
[1723377700622,0.00831,60773.0,60772.0,1.26880592]
[1723377701021,0.00831,60773.0,60772.0,1.33071591]
[1723377702019,0.00831,60773.0,60772.0,1.56108491]
[1723377702846,0.00831,60773.0,60772.0,1.57297991]
[1723377703367,0.00831,60773.0,60772.0,1.55897991]
[1723377703709,0.00831,60773.0,60772.0,1.57297991]
[1723377703952,0.00831,60773.0,60772.0,1.55997991]
[1723377704538,0.00831,60773.0,60772.0,1.57297991]
[1723377704943,0.00831,60773.0,60772.0,1.58297991]
[1723377705138,0.00831,60773.0,60772.0,1.59297991]
[1723377705369,0.00831,60773.0,60772.0,1.59197991]
[1723377705570,0.00831,60773.0,60772.0,1.60597991]
[1723377705983,0.00831,60773.0,60772.0,1.53006992]
[1723377706194,0.00831,60773.0,60772.0,2.35236206]
[1723377706364,0.00831,60773.0,60772.0,2.36636206]
[1723377707051,0.00831,60773.0,60772.0,2.32036206]
[1723377707479,0.00831,60773.0,60772.0,2.33436206]
[1723377708006,0.00831,60773.0,60772.0,2.32036206]
[1723377708193,0.00831,60773.0,60772.0,2.33436206]
[1723377708396,0.00831,60773.0,60772.0,2.32036206]
[1723377708646,0.00831,60773.0,60772.0,2.33436206]
[1723377709572,0.00831,60773.0,60772.0,2.04170092]
[1723377709774,0.00831,60773.0,60772.0,2.10385576]
[1723377710190,0.00831,60773.0,60772.0,2.33422476]
[1723377710391,0.00831,60773.0,60772.0,1.57422468]
[1723377710601,0.00831,60773.0,60772.0,1.34385568]
[1723377711284,0.00831,60773.0,60772.0,1.09810592]
[1723377719277,0.10161,60773.0,60772.0,1.09810592]
[1723377719804,0.10161,60773.0,60772.0,1.08410592]
[1723377720007,0.10161,60773.0,60772.0,1.07010592]
[1723377720235,0.10161,60773.0,60772.0,1.09010592]
[1723377720606,0.10161,60773.0,60772.0,1.07910592]
[1723377721056,0.216792,60773.0,60772.0,0.015]
[1723377721211,0.52555491,60773.0,60772.0,0.015]
[1723377721416,0.75591991,60773.0,60772.0,0.015]
[1723377721896,1.12293182,60773.0,60772.0,0.015]
[1723377722068,0.89256682,60773.0,60772.0,0.006]
[1723377722275,0.281886,60772.0,60770.0,0.0009141]
[1723377722443,0.40346291,60771.0,60770.0,0.0009141]
[1723377722640,0.51864891,60771.0,60770.0,0.0009141]
[1723377722846,1.22455118,60771.0,60770.0,0.0009141]
[1723377723075,1.51175109,60771.0,60770.0,0.0009141]
[1723377723275,1.45739022,60771.0,60770.0,0.0009141]
[1723377723475,1.45739022,60771.0,60770.0,0.0019141]
[1723377723682,1.69776322,60771.0,60770.0,0.0019141]
[1723377723885,1.69976322,60771.0,60770.0,0.0019141]
[1723377724089,1.69976322,60771.0,60770.0,0.0009141]
[1723377724527,1.70176322,60771.0,60770.0,0.0019141]
[1723377725183,1.51375109,60771.0,60770.0,0.0019141]
[1723377725586,1.63877916,60771.0,60770.0,0.0029141]
[1723377726358,1.1957087,60771.0,60770.0,0.0029141]
[1723377726559,1.45574071,60771.0,60770.0,0.0029141]
[1723377727344,1.37040565,60771.0,60770.0,0.0029141]
[1723377727554,1.4441774,60771.0,60770.0,0.0029141]
[1723377727953,1.45875722,60771.0,60770.0,0.0029141]
[1723377728675,1.43461994,60771.0,60770.0,0.0029141]
[1723377729206,1.36085992,60771.0,60770.0,0.0029141]
[1723377729449,1.43459814,60771.0,60770.0,0.0029141]
[1723377729873,1.45459814,60771.0,60770.0,0.0029141]
[1723377730072,1.08074322,60771.0,60770.0,0.0029141]
[1723377730304,1.4566069,60771.0,60770.0,0.0029141]
[1723377730513,1.45660272,60771.0,60770.0,0.0029141]
[1723377730740,1.45660343,60771.0,60770.0,0.0029141]
[1723377731593,1.38286939,60771.0,60770.0,0.0029141]
[1723377731920,1.38286931,60771.0,60770.0,0.0029141]
[1723377732487,1.43201014,60771.0,60770.0,0.0029141]
[1723377733313,1.59582506,60771.0,60770.0,0.0029141]
[1723377733826,1.59582536,60771.0,60770.0,0.0029141]
[1723377734056,2.30157691,60771.0,60770.0,0.0029141]
[1723377734289,2.25438115,60771.0,60770.0,0.0029141]
[1723377734744,2.37718142,60771.0,60770.0,0.0029141]
[1723377734969,2.23636107,60771.0,60770.0,0.0029141]
[1723377735206,2.30148599,60771.0,60770.0,0.0029141]
[1723377735429,2.17668684,60771.0,60770.0,0.0019141]
[1723377735650,2.27489743,60771.0,60770.0,0.0019141]
[1723377735891,2.28589743,60771.0,60770.0,0.0019141]
[1723377736318,2.29989743,60771.0,60770.0,0.0029141]
[1723377736817,2.4550738,60771.0,60770.0,0.0029141]
[1723377737322,2.45643516,60771.0,60770.0,0.0029141]
[1723377737578,2.57911106,60771.0,60770.0,0.0029141]
[1723377738519,2.45643516,60771.0,60770.0,0.0029141]
[1723377739681,2.55450958,60771.0,60770.0,0.0029141]
[1723377740696,1.80668037,60771.0,60770.0,0.0029141]
[1723377740942,2.55458165,60771.0,60770.0,0.0029141]
[1723377741394,2.55432769,60771.0,60770.0,0.0029141]
[1723377741815,4.4646981,60771.0,60770.0,0.0029141]
[1723377742040,0.0765,60743.0,60735.0,0.073]
[1723377742252,0.115252,60736.0,60735.0,0.073]
[1723377742493,0.0911,60735.0,60727.0,0.073]
[1723377742703,0.41413784,60734.0,60728.0,0.115267]
[1723377742913,0.06836584,60733.0,60728.0,0.115267]
[1723377743115,0.06836584,60732.0,60728.0,0.115267]
[1723377743342,0.06836584,60731.0,60728.0,0.115267]
[1723377743547,0.115259,60733.0,60729.0,0.115265]
[1723377743759,0.115259,60733.0,60728.0,0.115266]
[1723377743939,0.06837335,60732.0,60728.0,0.115266]
[1723377744388,0.11526,60732.0,60728.0,0.115266]
[1723377744862,0.115268,60728.0,60727.0,0.001]
[1723377745076,0.230528,60730.0,60725.0,0.0009141]
[1723377745298,0.11527,60727.0,60725.0,0.0009141]
[1723377746166,0.230528,60730.0,60725.0,0.0009141]
[1723377746167,0.345814,60726.0,60725.0,0.0009141]
[1723377746618,0.41419514,60726.0,60725.0,0.0009141]
[1723377747420,0.345814,60726.0,60725.0,0.0009141]
[1723377748236,0.41419554,60726.0,60725.0,0.0009141]
[1723377748437,0.48669554,60726.0,60725.0,0.0009141]
[1723377748639,0.49069554,60726.0,60725.0,0.0009141]
[1723377748841,0.49269554,60726.0,60725.0,0.0009141]
[1723377749040,0.48869554,60726.0,60725.0,0.0009141]
[1723377749248,0.71923854,60726.0,60725.0,0.0009141]
[1723377749456,0.49069554,60726.0,60725.0,0.0009141]
[1723377749710,0.49269554,60726.0,60725.0,0.0009141]
[1723377749912,0.42019554,60726.0,60725.0,0.0009141]
[1723377750117,0.18965254,60726.0,60725.0,0.0009141]
[1723377750733,0.121271,60726.0,60725.0,0.0009141]
[1723377751285,0.121271,60726.0,60725.0,0.00861538]
[1723377751492,0.65073959,60726.0,60725.0,0.00861538]
[1723377751701,0.42019659,60726.0,60725.0,0.0009141]
[1723377751918,0.50777033,60726.0,60725.0,0.0009141]
[1723377752159,0.57615463,60726.0,60725.0,0.0009141]
[1723377752988,0.67406174,60726.0,60725.0,0.0009141]
[1723377753194,0.5183983,60726.0,60725.0,0.0009141]
[1723377753830,1.05888563,60726.0,60725.0,0.0009141]
[1723377754661,1.05488563,60726.0,60725.0,0.0009141]
[1723377755059,1.06688563,60726.0,60725.0,0.0009141]
[1723377755259,0.98263139,60726.0,60725.0,0.0009141]
[1723377755880,0.99663139,60726.0,60725.0,0.0009141]
[1723377756092,1.00590313,60726.0,60725.0,0.0009141]
[1723377756312,0.36432698,60726.0,60725.0,0.0009141]
[1723377756512,0.373814,60726.0,60725.0,0.0009141]
[1723377756944,0.373814,60726.0,60725.0,0.00861676]
[1723377757508,0.359814,60726.0,60725.0,0.00861676]
[1723377757728,0.014,60726.0,60725.0,0.12388976]
[1723377757920,0.01,60726.0,60725.0,0.00861676]
[1723377758099,0.019,60726.0,60725.0,0.00861676]
[1723377758306,0.009,60726.0,60725.0,0.00861676]
[1723377758506,0.115271,60727.0,60725.0,0.00861676]
[1723377758707,0.009,60726.0,60725.0,0.00861676]
[1723377758920,0.016,60726.0,60725.0,0.00861676]
[1723377759128,0.007,60726.0,60725.0,0.00861676]
[1723377759327,0.230531,60730.0,60726.0,0.115271]
[1723377759328,0.115264,60730.0,60726.0,0.115271]
[1723377759540,0.008,60726.0,60725.0,0.1161871]
[1723377759977,0.008,60726.0,60725.0,0.0009141]
[1723377760485,0.008,60726.0,60725.0,0.1161871]
[1723377760692,0.007,60727.0,60725.0,0.1161871]
[1723377761057,0.115266,60729.0,60725.0,0.1161871]
[1723377761265,0.006,60726.0,60725.0,0.1161871]
[1723377761675,0.115266,60729.0,60725.0,0.1161871]
[1723377761884,0.009,60727.0,60725.0,0.1161871]
[1723377762147,0.016,60727.0,60726.0,0.345814]
[1723377762409,0.11526,60732.0,60728.0,0.115267]
[1723377762609,0.22225839,60731.0,60726.0,0.230543]
[1723377762833,0.06837651,60730.0,60728.0,0.115267]
[1723377763021,0.06837651,60729.0,60728.0,0.115267]
[1723377763233,0.06837651,60731.0,60728.0,0.115267]
[1723377763437,0.22220695,60730.0,60727.0,0.230539]
[1723377763642,0.11526,60733.0,60729.0,0.115266]
[1723377763856,0.22220246,60732.0,60729.0,0.115266]
[1723377764067,0.22220246,60731.0,60728.0,0.115268]
[1723377764270,0.22220332,60730.0,60728.0,0.115268]
[1723377764477,0.22220332,60729.0,60728.0,0.115267]
[1723377765268,0.22220332,60729.0,60727.0,0.230538]
[1723377765269,0.22220332,60729.0,60725.0,0.0009141]
[1723377765480,0.22220332,60728.0,60727.0,0.115269]
[1723377765900,0.22220332,60728.0,60726.0,0.11527]
[1723377766300,0.22135053,60727.0,60726.0,0.11527]
[1723377766507,0.22135053,60727.0,60726.0,0.115271]
[1723377767241,0.06837822,60727.0,60726.0,0.115271]
[1723377767481,0.06837718,60728.0,60727.0,0.115269]
[1723377767687,0.07737717,60728.0,60727.0,0.45448392]
[1723377767863,0.07737352,60728.0,60727.0,0.45448392]
[1723377768102,0.06837352,60728.0,60727.0,0.68502292]
[1723377768304,0.115257,60734.0,60729.0,0.115264]
[1723377768305,0.0683726,60733.0,60729.0,0.115264]
[1723377768513,0.06837271,60732.0,60729.0,0.115264]
[1723377768730,0.06837271,60731.0,60729.0,0.115264]
[1723377768935,0.06837271,60730.0,60729.0,0.115264]
[1723377769151,0.230506,60736.0,60730.0,0.115264]
[1723377769367,0.20511813,60735.0,60729.0,0.230531]
[1723377769582,0.20511813,60734.0,60732.0,0.115259]
[1723377769822,0.20511813,60733.0,60730.0,0.115262]
[1723377770055,0.06837271,60732.0,60731.0,0.115262]
[1723377770293,0.20511813,60732.0,60731.0,0.115262]
[1723377770771,0.20511813,60732.0,60731.0,0.345786]
[1723377771012,0.20511813,60732.0,60731.0,0.115262]
[1723377771243,0.20911813,60732.0,60731.0,0.115262]
[1723377771471,0.20911813,60732.0,60731.0,0.345786]
[1723377771740,0.20911813,60732.0,60731.0,0.74012492]
[1723377771958,0.07837271,60732.0,60731.0,1.14604892]
[1723377772205,0.01,60732.0,60731.0,1.47657292]
[1723377773373,0.004,60732.0,60731.0,1.47657292]
[1723377773583,0.25750539,60743.0,60742.0,0.751607]
[1723377773787,0.46752239,60755.0,60750.0,0.115225]
[1723377773995,0.20505825,60754.0,60750.0,0.115225]
[1723377774198,0.20505825,60753.0,60750.0,0.115225]
[1723377774408,0.20505825,60752.0,60750.0,0.115225]
[1723377774620,0.20505825,60751.0,60750.0,0.115225]
[1723377775461,0.20505825,60751.0,60750.0,0.91534392]
[1723377775462,0.06835275,60751.0,60750.0,0.91534392]
[1723377775689,0.014,60755.0,60754.0,0.576092]
[1723377775916,0.7923,60761.0,60754.0,0.576092]
[1723377775917,0.7923,60761.0,60759.0,0.115209]
[1723377776168,0.06834067,60760.0,60759.0,0.115209]
[1723377776405,0.06834067,60762.0,60759.0,0.115209]
[1723377776634,0.06834067,60762.0,60760.0,0.115206]
[1723377776862,0.06834067,60761.0,60760.0,0.115206]
[1723377777097,0.0683404,60763.0,60758.0,0.40582]
[1723377777324,0.06833861,60764.0,60758.0,0.40582]
[1723377777553,0.06833861,60763.0,60759.0,0.16381492]
[1723377777818,0.35230539,60771.0,60768.0,0.115191]
[1723377778047,0.23711947,60769.0,60768.0,0.115191]
[1723377778853,0.23711947,60769.0,60768.0,0.345575]
[1723377779180,0.25750539,60771.0,60769.0,0.34557]
[1723377779181,0.009831,60770.0,60769.0,0.34557]
[1723377779382,0.009831,60770.0,60769.0,0.97014492]
[1723377780088,0.009831,60770.0,60769.0,1.14554492]
[1723377780323,0.000831,60770.0,60769.0,1.14554492]
[1723377780526,0.004831,60770.0,60769.0,0.91516492]
[1723377781105,0.004831,60770.0,60769.0,1.14554492]
[1723377781314,0.006831,60770.0,60769.0,1.14554492]
[1723377781537,0.006831,60770.0,60769.0,0.91516492]
[1723377782277,0.006831,60770.0,60769.0,1.14554492]
[1723377784875,0.006831,60770.0,60769.0,1.38335174]
[1723377785111,0.004831,60770.0,60769.0,1.48335174]
[1723377785552,0.005831,60770.0,60769.0,1.48835174]
[1723377785971,0.005831,60770.0,60769.0,1.75173174]
[1723377786182,0.001831,60770.0,60769.0,1.75173174]
[1723377786605,0.001831,60770.0,60769.0,1.75373174]
[1723377786817,0.000831,60770.0,60769.0,1.74873174]
[1723377787021,0.000831,60770.0,60769.0,1.74673174]
[1723377787234,0.000831,60770.0,60769.0,1.75273174]
[1723377787235,0.001831,60770.0,60769.0,1.75273174]
[1723377787457,0.001831,60770.0,60769.0,1.48535174]
[1723377787704,0.002831,60770.0,60769.0,1.48935174]
[1723377787916,0.001831,60770.0,60769.0,1.48735174]
[1723377788158,0.001831,60770.0,60769.0,1.48535174]
[1723377788370,0.002831,60770.0,60769.0,1.49135174]
[1723377788796,0.001831,60770.0,60769.0,1.48735174]
[1723377789422,0.000831,60770.0,60769.0,1.48535174]
[1723377789847,0.001831,60770.0,60769.0,1.48735174]
[1723377790051,0.001831,60770.0,60769.0,1.48535174]
[1723377790303,0.001831,60770.0,60769.0,1.48735174]
[1723377790517,0.000831,60770.0,60769.0,1.48535174]
[1723377790738,0.001831,60770.0,60769.0,1.48535174]
[1723377791576,0.001831,60770.0,60769.0,1.05887174]
[1723377791789,0.002831,60770.0,60769.0,1.06287174]
[1723377792004,0.002831,60770.0,60769.0,0.98357174]
[1723377792587,0.002831,60770.0,60769.0,0.98448584]
[1723377792809,0.001831,60770.0,60769.0,0.01234092]
[1723377793012,0.001831,60770.0,60769.0,0.35791092]
[1723377793364,0.000831,60770.0,60769.0,0.12697396]
[1723377793781,0.08367746,60770.0,60769.0,0.01378396]
[1723377794026,0.08367746,60770.0,60769.0,0.01778396]
[1723377794027,0.08467746,60770.0,60769.0,0.01778396]
[1723377794240,0.08367746,60770.0,60769.0,0.13097396]
[1723377794451,0.08267746,60770.0,60769.0,0.01378396]
[1723377794658,0.08267746,60770.0,60769.0,0.13297396]
[1723377794860,0.08267746,60770.0,60769.0,0.01778396]
[1723377795070,0.15727746,60770.0,60769.0,0.01378396]
[1723377795710,0.27246546,60770.0,60769.0,0.01378396]
[1723377795928,0.27246546,60770.0,60769.0,0.01178396]
[1723377796119,0.27646546,60770.0,60769.0,0.01178396]
[1723377796331,0.27646546,60770.0,60769.0,0.00830308]
[1723377796550,1.08968993,60770.0,60769.0,0.00830308]
[1723377796758,1.42306593,60770.0,60769.0,0.00830308]
[1723377796972,1.42306593,60770.0,60769.0,0.0009141]
[1723377796973,1.59883438,60770.0,60769.0,0.0009141]
[1723377797611,1.53277683,60770.0,60769.0,0.0009141]
[1723377797845,1.53077683,60770.0,60769.0,0.0009141]
[1723377798053,1.75981562,60770.0,60769.0,0.0009141]
[1723377798483,1.74581562,60770.0,60769.0,0.0009141]
[1723377798701,1.21677824,60770.0,60769.0,0.0009141]
[1723377798912,1.22677824,60770.0,60769.0,0.0009141]
[1723377799144,1.21677824,60770.0,60769.0,0.0009141]
[1723377799360,0.44098745,60770.0,60769.0,0.0009141]
[1723377799582,0.7531711,60770.0,60769.0,0.0009141]
[1723377799792,1.2379231,60770.0,60769.0,0.0009141]
[1723377800041,1.43073802,60770.0,60769.0,0.0009141]
[1723377800243,1.69932888,60770.0,60769.0,0.0009141]
[1723377800499,1.72732888,60770.0,60769.0,0.0009141]
[1723377800973,1.70014292,60770.0,60769.0,0.0009141]
[1723377801192,1.78918204,60770.0,60769.0,0.0009141]
[1723377801415,2.02955804,60770.0,60769.0,0.0009141]
[1723377801619,0.115224,60751.0,60750.0,0.49107874]
[1723377801824,0.345672,60751.0,60750.0,0.49107874]
[1723377802041,0.345672,60751.0,60750.0,0.00744009]
[1723377802262,0.50682381,60751.0,60750.0,0.00744009]
[1723377802493,0.50682381,60751.0,60745.0,0.115235]
[1723377802494,0.115228,60749.0,60745.0,0.115235]
[1723377802724,0.208025,60751.0,60746.0,0.12335499]
[1723377802952,0.26750539,60758.0,60754.0,0.115218]
[1723377802953,0.0928,60755.0,60754.0,0.115218]
[1723377803163,0.16115125,60755.0,60754.0,0.115218]
[1723377803422,0.06835125,60755.0,60754.0,0.58420516]
[1723377803661,0.06835125,60755.0,60754.0,0.00811316]
[1723377803662,0.06834765,60755.0,60754.0,0.00811316]
[1723377803913,0.25750539,60758.0,60754.0,0.115218]
[1723377804132,0.21587853,60757.0,60754.0,0.12333687]
[1723377804332,0.21587853,60756.0,60755.0,0.115216]
[1723377804740,0.30867853,60756.0,60755.0,0.00811777]
[1723377804943,0.21587853,60756.0,60755.0,0.35376677]
[1723377805117,0.22017363,60756.0,60755.0,0.35376677]
[1723377805349,0.22017363,60756.0,60755.0,0.12333377]
[1723377805535,0.22017363,60756.0,60755.0,0.00811777]
[1723377805996,0.33538763,60756.0,60755.0,0.00811777]
[1723377806419,0.33538763,60756.0,60754.0,0.0009141]
[1723377806420,0.115216,60755.0,60754.0,0.0009141]
[1723377806636,0.33109453,60755.0,60754.0,0.0009141]
[1723377807029,0.22017363,60755.0,60754.0,0.0009141]
[1723377807445,0.2201745,60755.0,60754.0,0.0009141]
[1723377807850,0.2311745,60755.0,60754.0,0.0009141]
[1723377808063,0.3463905,60755.0,60754.0,0.00903297]
[1723377808472,0.3463905,60755.0,60754.0,0.0009141]
[1723377808679,0.57682446,60755.0,60754.0,0.0009141]
[1723377809361,1.39326206,60755.0,60754.0,0.0009141]
[1723377809573,1.59007698,60755.0,60754.0,0.0009141]
[1723377809803,1.73543638,60755.0,60754.0,0.0009141]
[1723377810026,1.84327804,60755.0,60754.0,0.0009141]